[Event "44th Chess Olympiad Women 2022"]
[Site "Chennai"]
[Date "2022.08.08"]
[Round "10.49"]
[White "Mwango, Lorita"]
[Black "Seine, Rose Berline"]
[Result "1/2-1/2"]
[WhiteElo "1920"]
[BlackElo "1679"]
[Annotator "NA RC"]
[PlyCount "178"]
[EventDate "2022.??.??"]
[TimeControl "60"]

1. c4 {[%emt 0:00:06]} e6 {[%emt 0:00:19]} 2. Nc3 {[%emt 0:00:08]} d5 {[%emt 0:
00:00]} 3. cxd5 {[%emt 0:01:47]} exd5 {[%emt 0:00:06]} 4. d4 {[%emt 0:00:02]}
c6 {[%emt 0:00:17]} 5. g3 {[%emt 0:00:09]} Bd6 {[%emt 0:00:13]} 6. Bg2 {
[%emt 0:00:07]} Nf6 {[%emt 0:00:12]} 7. Nf3 {[%emt 0:00:15]} O-O {[%emt 0:00:
00]} 8. O-O {[%emt 0:00:04]} Bf5 {[%emt 0:00:39]} 9. Nh4 {[%emt 0:04:19]} Be6 {
[%emt 0:01:08]} 10. Qc2 {[%emt 0:01:58]} Qd7 {[%emt 0:00:39]} 11. Bg5 {[%emt 0:
00:00]} Be7 {[%emt 0:00:51]} 12. Rac1 {[%emt 0:00:49]} h6 {[%emt 0:01:44]} 13.
Bd2 {[%emt 0:01:26]} Re8 {[%emt 0:01:04]} 14. Nf3 {[%emt 0:05:12]} Bf5 {
[%emt 0:02:25]} 15. Qb3 {[%emt 0:00:33]} Bd6 {[%emt 0:00:44]} 16. Rfe1 {
[%emt 0:02:24]} Na6 {[%emt 0:00:11]} 17. a3 {[%emt 0:00:16]} Rab8 {[%emt 0:00:
00]} 18. Qa4 {[%emt 0:02:26]} c5 {[%emt 0:07:53]} 19. Qb3 {[%emt 0:08:51]} c4 {
[%emt 0:03:27]} 20. Qb5 {[%emt 0:01:50]} Nc7 {[%emt 0:03:26]} 21. Qxd7 {
[%emt 0:01:37]} Bxd7 {[%emt 0:00:09]} 22. Ne5 {[%emt 0:03:43]} Be6 {[%emt 0:00:
00]} 23. f4 {[%emt 0:00:35]} b5 {[%emt 0:03:14]} 24. e4 {[%emt 0:00:17]} dxe4 {
[%emt 0:01:31]} 25. Nxe4 {[%emt 0:00:11]} Nxe4 {[%emt 0:01:16]} 26. Bxe4 {
[%emt 0:00:14]} Bd5 {[%emt 0:02:06]} 27. Bxd5 {[%emt 0:03:18]} Nxd5 {[%emt 0:
00:00]} 28. Nc6 {[%emt 0:01:17]} Rxe1+ {[%emt 0:01:26]} 29. Rxe1 {[%emt 0:00:
00]} Ra8 {[%emt 0:01:12]} 30. Kf2 {[%emt 0:00:31]} a6 {[%emt 0:00:41]} 31. Rc1
{[%emt 0:02:40]} Nf6 {[%emt 0:02:48]} 32. Kf3 {[%emt 0:00:22]} Nd5 {[%emt 0:00:
00]} 33. Ke4 {[%emt 0:01:06]} Nf6+ {[%emt 0:00:25]} 34. Kf3 {[%emt 0:00:48]}
Nd5 {[%emt 0:00:49]} 35. h3 {[%emt 0:03:58]} Rc8 {[%emt 0:00:50]} 36. Nb4 {
[%emt 0:00:24]} Nxb4 {[%emt 0:01:48]} 37. axb4 {[%emt 0:01:04]} Kf8 {[%emt 0:
00:00]} 38. Ke4 {[%emt 0:00:12]} Ke7 {[%emt 0:00:14]} 39. Kd5 {[%emt 0:00:12]}
Kd7 {[%emt 0:00:11]} 40. Ra1 {[%emt 0:02:51]} Ra8 {[%emt 0:01:03]} 41. Ra3 {
[%emt 0:33:21]} Kc7 {[%emt 0:34:45]} 42. b3 {[%emt 0:06:13]} Rd8 {[%emt 0:00:
00]} 43. Ke4 {[%emt 0:00:34]} Re8+ {[%emt 0:04:58]} 44. Kf3 {[%emt 0:00:13]}
Kb6 {[%emt 0:02:16]} 45. bxc4 {[%emt 0:00:37]} bxc4 {[%emt 0:00:10]} 46. Bc3 {
[%emt 0:00:35]} h5 {[%emt 0:10:38]} 47. Ra5 {[%emt 0:00:38]} g6 {[%emt 0:00:25]
} 48. Rg5 {[%emt 0:02:28]} Rg8 {[%emt 0:02:09]} 49. Rd5 {[%emt 0:03:05]} Kc6 {
[%emt 0:00:18]} 50. Ra5 {[%emt 0:01:14]} Kb6 {[%emt 0:00:27]} 51. d5 {[%emt 0:
00:00]} Re8 {[%emt 0:01:16]} 52. Bd4+ {[%emt 0:00:48]} Kb7 {[%emt 0:00:28]} 53.
Bc5 {[%emt 0:00:13]} Bc7 {[%emt 0:04:46]} 54. Ra1 {[%emt 0:00:24]} f5 {[%emt 0:
00:00]} 55. Rd1 {[%emt 0:01:23]} Re4 {[%emt 0:00:51]} 56. d6 {[%emt 0:07:19]}
Bd8 {[%emt 0:00:15]} 57. g4 {[%emt 0:00:21]} hxg4+ {[%emt 0:00:45]} 58. hxg4 {
[%emt 0:00:02]} Kc6 {[%emt 0:01:23]} 59. d7 {[%emt 0:00:32]} Re6 {[%emt 0:00:
00]} 60. gxf5 {[%emt 0:00:24]} gxf5 {[%emt 0:00:19]} 61. Rd4 {[%emt 0:01:20]}
Kb5 {[%emt 0:02:42]} 62. Rd5 {[%emt 0:00:00]} Kc6 {[%emt 0:02:21]} 63. Rxf5 {
[%emt 0:00:00]} Kxd7 {[%emt 0:00:36]} 64. Rd5+ {[%emt 0:00:59]} Ke8 {[%emt 0:
00:00]} 65. Rd4 {[%emt 0:03:25]} c3 {[%emt 0:00:21]} 66. Rc4 {[%emt 0:00:34]}
Bf6 {[%emt 0:00:20]} 67. Be3 {[%emt 0:02:29]} Kd7 {[%emt 0:04:30]} 68. Ke2 {
[%emt 0:01:23]} Rd6 {[%emt 0:00:27]} 69. Rc5 {[%emt 0:02:06]} Rc6 {[%emt 0:00:
00]} 70. Kd3 {[%emt 0:02:58]} Rxc5 {[%emt 0:00:27]} 71. Bxc5 {[%emt 0:00:06]}
Kc6 {[%emt 0:00:11]} 72. Bf8 {[%emt 0:00:42]} Kd5 {[%emt 0:05:32]} 73. Bh6 {
[%emt 0:00:54]} Ke6 {[%emt 0:01:33]} 74. Bg5 {[%emt 0:00:39]} Bg7 {[%emt 0:00:
00]} 75. Bh4 {[%emt 0:00:41]} Kf5 {[%emt 0:01:30]} 76. Bg3 {[%emt 0:02:12]} Bf6
{[%emt 0:02:11]} 77. Bh2 {[%emt 0:02:34]} Kg4 {[%emt 0:00:50]} 78. Kc2 {
[%emt 0:02:44]} Kh3 {[%emt 0:00:00]} 79. Bg1 {[%emt 0:00:00]} Kg3 {[%emt 0:00:
00]} 80. Be3 {[%emt 0:00:00]} Kf3 {[%emt 0:00:00]} 81. Kd3 {[%emt 0:00:00]} Kg4
{[%emt 0:00:00]} 82. Bc1 {[%emt 0:00:00]} Kf5 {[%emt 0:00:00]} 83. Be3 {
[%emt 0:00:00]} Bg7 {[%emt 0:00:00]} 84. Bc1 {[%emt 0:00:00]} Bf6 {[%emt 0:00:
00]} 85. Be3 {[%emt 0:00:00]} Bg7 {[%emt 0:00:00]} 86. Bf2 {[%emt 0:00:00]}
Kxf4 {[%emt 0:00:00]} 87. Be1 {[%emt 0:00:00]} Kf5 {[%emt 0:00:00]} 88. Bxc3 {
[%emt 0:00:00]} Bf8 {[%emt 0:00:00]} 89. Kc4 {[%emt 0:00:00]} Bxb4 {[%emt 0:00:
00]} 1/2-1/2

[Event "44th Chess Olympiad Women 2022"]
[Site "Chennai"]
[Date "2022.08.08"]
[Round "10.49"]
[White "Phiri Bertha"]
[Black "Cadeau, Merisena"]
[Result "0-1"]
[WhiteElo "1606"]
[BlackElo "1439"]
[Annotator "NA RC"]
[PlyCount "136"]
[EventDate "2022.??.??"]
[TimeControl "60"]

1. e4 {[%emt 0:00:12]} c5 {[%emt 0:00:06]} 2. Nf3 {[%emt 0:00:00]} Nc6 {
[%emt 0:00:07]} 3. d3 {[%emt 0:00:13]} d6 {[%emt 0:00:16]} 4. g3 {[%emt 0:00:
00]} Nf6 {[%emt 0:00:21]} 5. Bg2 {[%emt 0:00:04]} e6 {[%emt 0:00:20]} 6. c3 {
[%emt 0:01:54]} Bd7 {[%emt 0:01:04]} 7. O-O {[%emt 0:01:02]} Qc7 {[%emt 0:00:
00]} 8. b3 {[%emt 0:00:34]} g6 {[%emt 0:01:25]} 9. Bb2 {[%emt 0:00:57]} Bg7 {
[%emt 0:00:15]} 10. Nbd2 {[%emt 0:00:37]} O-O {[%emt 0:00:55]} 11. d4 {[%emt 0:
00:00]} cxd4 {[%emt 0:03:19]} 12. cxd4 {[%emt 0:00:03]} Rfd8 {[%emt 0:02:24]}
13. Rc1 {[%emt 0:00:48]} Rac8 {[%emt 0:03:00]} 14. Qe2 {[%emt 0:02:25]} a6 {
[%emt 0:02:08]} 15. Rfe1 {[%emt 0:02:13]} Be8 {[%emt 0:03:39]} 16. Bh3 {
[%emt 0:06:36]} d5 {[%emt 0:10:13]} 17. e5 {[%emt 0:05:03]} Nd7 {[%emt 0:00:12]
} 18. Ng5 {[%emt 0:04:02]} Nf8 {[%emt 0:00:40]} 19. f4 {[%emt 0:04:42]} b5 {
[%emt 0:10:29]} 20. Ngf3 {[%emt 0:04:21]} Qb6 {[%emt 0:00:52]} 21. a3 {[%emt 0:
00:00]} Na5 {[%emt 0:06:59]} 22. Qd3 {[%emt 0:04:03]} Rc6 {[%emt 0:05:15]} 23.
Rxc6 {[%emt 0:00:22]} Bxc6 {[%emt 0:00:11]} 24. Rc1 {[%emt 0:00:35]} Rc8 {
[%emt 0:00:15]} 25. Bf1 {[%emt 0:03:43]} Rc7 {[%emt 0:07:17]} 26. Kg2 {[%emt 0:
00:00]} Nd7 {[%emt 0:08:01]} 27. Be2 {[%emt 0:04:40]} Bb7 {[%emt 0:02:59]} 28.
Rxc7 {[%emt 0:00:47]} Qxc7 {[%emt 0:00:07]} 29. Qc3 {[%emt 0:00:15]} Nc6 {
[%emt 0:08:25]} 30. Ne1 {[%emt 0:03:47]} Bf8 {[%emt 0:01:46]} 31. Nd3 {[%emt 0:
00:00]} Qb6 {[%emt 0:01:59]} 32. b4 {[%emt 0:02:30]} a5 {[%emt 0:05:28]} 33.
Nc5 {[%emt 0:00:40]} Nxc5 {[%emt 0:07:14]} 34. bxc5 {[%emt 0:00:27]} b4 {
[%emt 0:03:44]} 35. Qb3 {[%emt 0:02:39]} Qa7 {[%emt 0:00:51]} 36. axb4 {
[%emt 0:02:39]} axb4 {[%emt 0:01:01]} 37. Bb5 {[%emt 0:00:39]} Qa5 {[%emt 0:00:
00]} 38. Qa4 {[%emt 0:00:47]} Qxa4 {[%emt 0:00:46]} 39. Bxa4 {[%emt 0:00:02]}
Be7 {[%emt 0:01:09]} 40. Bxc6 {[%emt 0:01:25]} Bxc6 {[%emt 0:00:07]} 41. Kf3 {
[%emt 0:30:04]} Bb5 {[%emt 0:31:11]} 42. Nb3 {[%emt 0:01:41]} Bd8 {[%emt 0:00:
00]} 43. Ke3 {[%emt 0:00:55]} Ba4 {[%emt 0:00:36]} 44. Nc1 {[%emt 0:00:13]} Kf8
{[%emt 0:01:59]} 45. Nd3 {[%emt 0:00:04]} Ba5 {[%emt 0:00:20]} 46. Nc1 {
[%emt 0:04:48]} Ke8 {[%emt 0:01:23]} 47. g4 {[%emt 0:00:39]} Kd7 {[%emt 0:00:
00]} 48. Ne2 {[%emt 0:00:14]} Kc6 {[%emt 0:00:49]} 49. Ng3 {[%emt 0:00:18]} Kb5
{[%emt 0:01:06]} 50. Kd3 {[%emt 0:00:18]} Bd1 {[%emt 0:00:00]} 51. h3 {[%emt 0:
00:00]} Bb3 {[%emt 0:00:00]} 52. f5 {[%emt 0:00:00]} Bc4+ {[%emt 0:00:00]} 53.
Ke3 {[%emt 0:00:00]} b3 {[%emt 0:00:00]} 54. fxe6 {[%emt 0:00:00]} fxe6 {
[%emt 0:00:00]} 55. Ne2 {[%emt 0:00:00]} Ka4 {[%emt 0:00:00]} 56. Nf4 {[%emt 0:
00:00]} Bb4 {[%emt 0:00:00]} 57. c6 {[%emt 0:00:00]} Ba3 {[%emt 0:00:00]} 58.
c7 {[%emt 0:00:00]} Ba6 {[%emt 0:00:00]} 59. Nxe6 {[%emt 0:00:00]} Bxb2 {
[%emt 0:04:24]} 60. Nc5+ {[%emt 0:00:00]} Kb5 {[%emt 0:00:06]} 61. Nxa6 {
[%emt 0:00:00]} Bc1+ {[%emt 0:00:29]} 62. Kd3 {[%emt 0:00:02]} b2 {[%emt 0:00:
00]} 63. c8=Q {[%emt 0:00:00]} b1=Q+ {[%emt 0:00:07]} 64. Ke2 {[%emt 0:00:00]}
Qe4+ {[%emt 0:00:03]} 65. Kf1 {[%emt 0:00:00]} Qf3+ {[%emt 0:00:12]} 66. Kg1 {
[%emt 0:00:00]} Be3+ {[%emt 0:00:17]} 67. Kh2 {[%emt 0:00:00]} Qf2+ {[%emt 0:
00:00]} 68. Kh1 {[%emt 0:00:01]} Qg1# {[%emt 0:02:00]} 0-1

[Event "44th Chess Olympiad Women 2022"]
[Site "Chennai"]
[Date "2022.08.08"]
[Round "10.50"]
[White "Bagga, Khushi"]
[Black "Stagno, Milena"]
[Result "0-1"]
[WhiteElo "1328"]
[BlackElo "1448"]
[Annotator "NA RC"]
[PlyCount "86"]
[EventDate "2022.??.??"]
[TimeControl "60"]

1. e4 {[%emt 0:00:01]} c5 {[%emt 0:00:09]} 2. d4 {[%emt 0:00:04]} cxd4 {
[%emt 0:00:03]} 3. c3 {[%emt 0:00:06]} Nc6 {[%emt 0:00:05]} 4. cxd4 {[%emt 0:
00:00]} d5 {[%emt 0:00:16]} 5. e5 {[%emt 0:01:26]} g6 {[%emt 0:00:10]} 6. Nf3 {
[%emt 0:00:28]} Bg7 {[%emt 0:00:13]} 7. Be2 {[%emt 0:00:51]} Bg4 {[%emt 0:00:
00]} 8. Be3 {[%emt 0:03:50]} Nh6 {[%emt 0:02:52]} 9. h3 {[%emt 0:03:55]} Bxf3 {
[%emt 0:00:06]} 10. Bxf3 {[%emt 0:00:16]} Qb6 {[%emt 0:03:20]} 11. Bxd5 {
[%emt 0:06:57]} Qb4+ {[%emt 0:11:17]} 12. Qd2 {[%emt 0:05:21]} Nxd4 {[%emt 0:
00:00]} 13. Bxd4 {[%emt 0:06:04]} Qxd2+ {[%emt 0:00:16]} 14. Nxd2 {[%emt 0:00:
00]} Rd8 {[%emt 0:00:07]} 15. Bxf7+ {[%emt 0:01:56]} Nxf7 {[%emt 0:00:46]} 16.
Bxa7 {[%emt 0:01:14]} Nxe5 {[%emt 0:00:57]} 17. Bb6 {[%emt 0:10:53]} Rxd2 {
[%emt 0:03:32]} 18. Kxd2 {[%emt 0:01:30]} Nc4+ {[%emt 0:00:03]} 19. Ke2 {
[%emt 0:00:17]} Nxb6 {[%emt 0:00:04]} 20. Rab1 {[%emt 0:00:14]} Kf7 {[%emt 0:
00:00]} 21. b3 {[%emt 0:04:04]} Nd5 {[%emt 0:04:11]} 22. Rbc1 {[%emt 0:04:21]}
Nc3+ {[%emt 0:00:15]} 23. Kf3 {[%emt 0:00:15]} Nxa2 {[%emt 0:00:29]} 24. Rc7 {
[%emt 0:00:57]} Rb8 {[%emt 0:01:51]} 25. Re1 {[%emt 0:00:54]} Bf6 {[%emt 0:00:
00]} 26. g3 {[%emt 0:05:30]} b5 {[%emt 0:04:44]} 27. Kg2 {[%emt 0:01:11]} Ra8 {
[%emt 0:10:11]} 28. Re3 {[%emt 0:02:11]} Rb8 {[%emt 0:06:41]} 29. g4 {[%emt 0:
00:00]} Nb4 {[%emt 0:00:35]} 30. Re2 {[%emt 0:00:47]} Nd5 {[%emt 0:00:12]} 31.
Rcc2 {[%emt 0:03:43]} Nf4+ {[%emt 0:00:07]} 32. Kg3 {[%emt 0:00:14]} Nxe2+ {
[%emt 0:00:05]} 33. Rxe2 {[%emt 0:00:08]} Rc8 {[%emt 0:01:07]} 34. Re3 {
[%emt 0:06:25]} Rc3 {[%emt 0:00:08]} 35. Kf3 {[%emt 0:01:09]} Rxe3+ {[%emt 0:
00:00]} 36. Kxe3 {[%emt 0:00:09]} Ke6 {[%emt 0:01:58]} 37. Ke4 {[%emt 0:01:23]}
Kd6 {[%emt 0:00:54]} 38. Kd3 {[%emt 0:00:20]} Kc5 {[%emt 0:00:04]} 39. f3 {
[%emt 0:00:30]} Kb4 {[%emt 0:00:16]} 40. Kc2 {[%emt 0:00:23]} Ka3 {[%emt 0:00:
00]} 41. f4 {[%emt 0:30:44]} e5 {[%emt 0:31:03]} 42. g5 {[%emt 0:01:22]} Bg7 {
[%emt 0:00:56]} 43. fxe5 {[%emt 0:00:56]} Bxe5 {[%emt 0:00:04]} 0-1

[Event "44th Chess Olympiad Women 2022"]
[Site "Chennai"]
[Date "2022.08.08"]
[Round "10.50"]
[White "Psaila, Uranchimeg"]
[Black "Ray, Hiya"]
[Result "0-1"]
[WhiteElo "1395"]
[BlackElo "1586"]
[Annotator "NA RC"]
[PlyCount "112"]
[EventDate "2022.??.??"]
[TimeControl "60"]

1. d4 {[%emt 0:00:05]} d5 {[%emt 0:00:15]} 2. Bf4 {[%emt 0:00:16]} e6 {[%emt 0:
00:00]} 3. e3 {[%emt 0:00:48]} c5 {[%emt 0:00:26]} 4. c3 {[%emt 0:00:18]} Nf6 {
[%emt 0:00:34]} 5. Nd2 {[%emt 0:01:58]} Bd6 {[%emt 0:00:59]} 6. Bg3 {[%emt 0:
00:00]} O-O {[%emt 0:01:14]} 7. Ngf3 {[%emt 0:02:44]} b6 {[%emt 0:01:26]} 8.
Bd3 {[%emt 0:01:46]} Bb7 {[%emt 0:01:07]} 9. O-O {[%emt 0:01:39]} Bxg3 {
[%emt 0:01:29]} 10. hxg3 {[%emt 0:00:12]} Ne4 {[%emt 0:04:14]} 11. Qb1 {
[%emt 0:15:57]} f5 {[%emt 0:05:09]} 12. Qe1 {[%emt 0:12:02]} Nd7 {[%emt 0:00:
00]} 13. Bb5 {[%emt 0:03:20]} Nd6 {[%emt 0:10:05]} 14. Bxd7 {[%emt 0:04:29]}
Qxd7 {[%emt 0:00:06]} 15. Ne5 {[%emt 0:00:39]} Qe7 {[%emt 0:01:28]} 16. Qd1 {
[%emt 0:05:57]} Rf6 {[%emt 0:05:14]} 17. Qa4 {[%emt 0:06:21]} b5 {[%emt 0:00:
00]} 18. Qd1 {[%emt 0:03:10]} c4 {[%emt 0:03:00]} 19. a4 {[%emt 0:06:10]} a6 {
[%emt 0:04:04]} 20. axb5 {[%emt 0:01:27]} Nxb5 {[%emt 0:00:19]} 21. Nb1 {
[%emt 0:02:34]} Qe8 {[%emt 0:07:27]} 22. Na3 {[%emt 0:01:57]} Nd6 {[%emt 0:00:
00]} 23. f3 {[%emt 0:01:59]} g5 {[%emt 0:05:24]} 24. Kf2 {[%emt 0:01:28]} g4 {
[%emt 0:03:25]} 25. Rh1 {[%emt 0:01:10]} Ra7 {[%emt 0:02:29]} 26. Nc2 {[%emt 0:
00:00]} Qb5 {[%emt 0:01:18]} 27. Qc1 {[%emt 0:01:34]} Ba8 {[%emt 0:01:59]} 28.
Rb1 {[%emt 0:03:04]} Rg7 {[%emt 0:01:54]} 29. Na3 {[%emt 0:01:23]} Qb8 {
[%emt 0:01:33]} 30. Qc2 {[%emt 0:00:48]} Rb7 {[%emt 0:01:25]} 31. Rhd1 {
[%emt 0:04:19]} Rb3 {[%emt 0:02:13]} 32. Nd7 {[%emt 0:01:13]} Qd8 {[%emt 0:00:
00]} 33. Nxf6+ {[%emt 0:00:23]} Qxf6 {[%emt 0:00:05]} 34. Rh1 {[%emt 0:00:26]}
Bc6 {[%emt 0:01:29]} 35. Rh2 {[%emt 0:00:15]} Ba4 {[%emt 0:02:06]} 36. Qd2 {
[%emt 0:00:19]} Rb7 {[%emt 0:01:30]} 37. Rbh1 {[%emt 0:01:01]} Rg7 {[%emt 0:00:
00]} 38. Rh6 {[%emt 0:00:47]} Qe7 {[%emt 0:00:39]} 39. Nc2 {[%emt 0:02:07]} Nf7
{[%emt 0:02:23]} 40. R6h4 {[%emt 0:02:02]} Qc7 {[%emt 0:01:47]} 41. f4 {
[%emt 0:31:45]} Nd6 {[%emt 0:30:35]} 42. Qc1 {[%emt 0:00:00]} Ne4+ {[%emt 0:00:
00]} 43. Ke1 {[%emt 0:00:00]} Nxg3 {[%emt 0:00:00]} 44. R1h2 {[%emt 0:00:00]}
Ne4 {[%emt 0:00:00]} 45. Rh6 {[%emt 0:00:00]} g3 {[%emt 0:00:00]} 46. R2h5 {
[%emt 0:00:00]} Qb6 {[%emt 0:00:00]} 47. Rxf5 {[%emt 0:00:00]} Nf2 {[%emt 0:00:
00]} 48. Rxd5 {[%emt 0:00:00]} Nd3+ {[%emt 0:00:00]} 49. Kd2 {[%emt 0:00:00]}
Nxc1 {[%emt 0:00:00]} 50. Kxc1 {[%emt 0:00:00]} Bxc2 {[%emt 0:00:00]} 51. Rc5 {
[%emt 0:00:00]} Rb7 {[%emt 0:00:00]} 52. b4 {[%emt 0:03:03]} cxb3 {[%emt 0:00:
00]} 53. Kb2 {[%emt 0:00:53]} a5 {[%emt 0:00:00]} 54. Rg5+ {[%emt 0:00:21]} Bg6
{[%emt 0:00:00]} 55. Rc5 {[%emt 0:04:30]} a4 {[%emt 0:00:00]} 56. Rh1 {[%emt 0:
00:00]} a3+ {[%emt 0:00:00]} 0-1

[Event "44th Chess Olympiad Women 2022"]
[Site "Chennai"]
[Date "2022.08.08"]
[Round "10.50"]
[White "Smith, Olivia"]
[Black "Farrugia, Jamie"]
[Result "1-0"]
[WhiteElo "2038"]
[BlackElo "1547"]
[Annotator "NA RC"]
[PlyCount "107"]
[EventDate "2022.??.??"]
[TimeControl "60"]

1. e4 {[%emt 0:00:03]} e5 {[%emt 0:00:07]} 2. Nc3 {[%emt 0:00:08]} Bc5 {
[%emt 0:00:15]} 3. Nf3 {[%emt 0:00:22]} Nc6 {[%emt 0:00:15]} 4. Nxe5 {[%emt 0:
00:00]} Bxf2+ {[%emt 0:00:57]} 5. Kxf2 {[%emt 0:00:11]} Nxe5 {[%emt 0:00:39]}
6. d4 {[%emt 0:00:50]} Ng6 {[%emt 0:01:58]} 7. Qf3 {[%emt 0:00:52]} d6 {
[%emt 0:02:23]} 8. Bd3 {[%emt 0:02:22]} Nf6 {[%emt 0:05:24]} 9. h3 {[%emt 0:00:
00]} h5 {[%emt 0:05:24]} 10. Bg5 {[%emt 0:03:47]} Ng4+ {[%emt 0:02:47]} 11.
Qxg4 {[%emt 0:01:05]} hxg4 {[%emt 0:00:31]} 12. Bxd8 {[%emt 0:00:18]} Kxd8 {
[%emt 0:02:06]} 13. hxg4 {[%emt 0:00:25]} Bxg4 {[%emt 0:07:55]} 14. Rxh8+ {
[%emt 0:00:08]} Nxh8 {[%emt 0:00:07]} 15. Rh1 {[%emt 0:00:12]} Kd7 {[%emt 0:00:
00]} 16. Kg3 {[%emt 0:00:18]} Be6 {[%emt 0:06:05]} 17. d5 {[%emt 0:00:09]} Ng6
{[%emt 0:00:33]} 18. dxe6+ {[%emt 0:00:15]} Kxe6 {[%emt 0:00:34]} 19. Nd5 {
[%emt 0:02:11]} Kd7 {[%emt 0:05:00]} 20. Rh7 {[%emt 0:00:39]} Rg8 {[%emt 0:00:
00]} 21. Nf4 {[%emt 0:01:08]} Nf8 {[%emt 0:02:46]} 22. Rh1 {[%emt 0:00:47]} c6
{[%emt 0:00:53]} 23. Bc4 {[%emt 0:00:46]} Ke7 {[%emt 0:00:37]} 24. Rf1 {
[%emt 0:00:22]} Rh8 {[%emt 0:00:53]} 25. a4 {[%emt 0:02:02]} Nd7 {[%emt 0:00:
00]} 26. Ne2 {[%emt 0:04:33]} Ne5 {[%emt 0:00:47]} 27. Bd3 {[%emt 0:00:46]} Rh5
{[%emt 0:01:51]} 28. Rf5 {[%emt 0:04:23]} Rh1 {[%emt 0:01:55]} 29. Nd4 {
[%emt 0:03:11]} c5 {[%emt 0:01:50]} 30. Nf3 {[%emt 0:02:26]} g6 {[%emt 0:02:41]
} 31. Rf4 {[%emt 0:00:42]} Nc6 {[%emt 0:00:26]} 32. Nd2 {[%emt 0:06:58]} Rd1 {
[%emt 0:04:58]} 33. Nc4 {[%emt 0:00:47]} Nb4 {[%emt 0:02:22]} 34. Ne3 {[%emt 0:
00:00]} Rb1 {[%emt 0:01:26]} 35. Bc4 {[%emt 0:01:49]} f6 {[%emt 0:00:50]} 36.
b3 {[%emt 0:00:44]} g5 {[%emt 0:09:43]} 37. Rf2 {[%emt 0:00:12]} Rc1 {[%emt 0:
00:00]} 38. Nd5+ {[%emt 0:00:48]} Nxd5 {[%emt 0:00:30]} 39. exd5 {[%emt 0:00:
00]} Re1 {[%emt 0:00:26]} 40. Re2+ {[%emt 0:02:37]} Rxe2 {[%emt 0:00:07]} 41.
Bxe2 {[%emt 0:30:02]} f5 {[%emt 0:30:10]} 42. Kf3 {[%emt 0:00:17]} Kf6 {
[%emt 0:00:09]} 43. g4 {[%emt 0:00:22]} f4 {[%emt 0:02:25]} 44. Ke4 {[%emt 0:
00:00]} a6 {[%emt 0:01:02]} 45. a5 {[%emt 0:01:14]} Kg6 {[%emt 0:00:33]} 46. c3
{[%emt 0:00:31]} Kf6 {[%emt 0:00:14]} 47. b4 {[%emt 0:00:25]} cxb4 {[%emt 0:00:
00]} 48. cxb4 {[%emt 0:00:10]} Kg6 {[%emt 0:00:20]} 49. Bxa6 {[%emt 0:03:11]}
bxa6 {[%emt 0:00:10]} 50. b5 {[%emt 0:00:07]} axb5 {[%emt 0:02:06]} 51. a6 {
[%emt 0:00:04]} b4 {[%emt 0:00:33]} 52. a7 {[%emt 0:00:05]} b3 {[%emt 0:00:02]}
53. a8=Q {[%emt 0:00:09]} b2 {[%emt 0:00:03]} 54. Qb7 {[%emt 0:00:34]} 1-0

[Event "44th Chess Olympiad Women 2022"]
[Site "Chennai"]
[Date "2022.08.08"]
[Round "10.51"]
[White "Castillo Beitia, Ashley Alexandra"]
[Black "Eman Sawan"]
[Result "1-0"]
[WhiteElo "1587"]
[BlackElo "1847"]
[Annotator "NA RC"]
[PlyCount "79"]
[EventDate "2022.??.??"]
[TimeControl "60"]

1. d4 {[%emt 0:00:03]} Nf6 {[%emt 0:00:06]} 2. c4 {[%emt 0:00:05]} g6 {[%emt 0:
00:00]} 3. Nc3 {[%emt 0:00:07]} Bg7 {[%emt 0:00:03]} 4. e4 {[%emt 0:00:07]} d6
{[%emt 0:00:04]} 5. f3 {[%emt 0:00:06]} O-O {[%emt 0:00:19]} 6. Be3 {[%emt 0:
00:00]} e5 {[%emt 0:01:42]} 7. d5 {[%emt 0:00:24]} Nbd7 {[%emt 0:00:52]} 8. Qd2
{[%emt 0:01:47]} a5 {[%emt 0:02:46]} 9. g4 {[%emt 0:08:23]} h5 {[%emt 0:01:38]}
10. h3 {[%emt 0:01:10]} Nc5 {[%emt 0:02:20]} 11. Bg5 {[%emt 0:03:50]} Qe8 {
[%emt 0:10:31]} 12. Nge2 {[%emt 0:05:55]} Nh7 {[%emt 0:10:43]} 13. Bh4 {
[%emt 0:14:41]} f5 {[%emt 0:10:37]} 14. gxf5 {[%emt 0:12:10]} gxf5 {[%emt 0:00:
00]} 15. Rg1 {[%emt 0:02:35]} Kh8 {[%emt 0:15:42]} 16. O-O-O {[%emt 0:03:00]}
a4 {[%emt 0:05:02]} 17. Kb1 {[%emt 0:04:42]} a3 {[%emt 0:03:09]} 18. b4 {
[%emt 0:07:12]} Na4 {[%emt 0:03:29]} 19. Nb5 {[%emt 0:02:58]} Qf7 {[%emt 0:00:
00]} 20. Nxa3 {[%emt 0:01:55]} Nb6 {[%emt 0:05:35]} 21. Qc3 {[%emt 0:04:27]}
fxe4 {[%emt 0:03:20]} 22. fxe4 {[%emt 0:00:12]} Qf3 {[%emt 0:00:56]} 23. Nc2 {
[%emt 0:07:23]} Qxe4 {[%emt 0:01:57]} 24. Qg3 {[%emt 0:01:17]} Rg8 {[%emt 0:00:
00]} 25. Nc3 {[%emt 0:01:29]} Qf4 {[%emt 0:03:39]} 26. Nb5 {[%emt 0:02:54]} Bf5
{[%emt 0:01:42]} 27. Qxf4 {[%emt 0:03:35]} exf4 {[%emt 0:00:08]} 28. Bd3 {
[%emt 0:01:19]} Bxd3 {[%emt 0:02:23]} 29. Rxd3 {[%emt 0:00:06]} Nxc4 {[%emt 0:
00:00]} 30. Nxc7 {[%emt 0:01:06]} Rac8 {[%emt 0:00:47]} 31. Ne6 {[%emt 0:00:38]
} Ne5 {[%emt 0:01:04]} 32. Rdd1 {[%emt 0:02:22]} Nf3 {[%emt 0:01:15]} 33. Rxg7
{[%emt 0:00:50]} Rxg7 {[%emt 0:00:05]} 34. Nxg7 {[%emt 0:00:06]} Kxg7 {[%emt 0:
00:00]} 35. Be7 {[%emt 0:00:18]} Nhg5 {[%emt 0:01:14]} 36. Bxd6 {[%emt 0:01:12]
} Ne4 {[%emt 0:00:22]} 37. Rd3 {[%emt 0:00:08]} Nfd2+ {[%emt 0:03:25]} 38. Kc1
{[%emt 0:01:01]} f3 {[%emt 0:01:57]} 39. Bc5 {[%emt 0:05:01]} Nxc5 {[%emt 0:00:
00]} 40. bxc5 {[%emt 0:00:57]} 1-0

[Event "44th Chess Olympiad Women 2022"]
[Site "Chennai"]
[Date "2022.08.08"]
[Round "10.51"]
[White "Heba, Assi"]
[Black "Vasquez Jaen, Lourdes Lorena"]
[Result "1-0"]
[WhiteElo "1449"]
[BlackElo "1653"]
[Annotator "NA RC"]
[PlyCount "65"]
[EventDate "2022.??.??"]
[TimeControl "60"]

1. d4 {[%emt 0:00:04]} Nf6 {[%emt 0:00:14]} 2. Nf3 {[%emt 0:00:08]} g6 {
[%emt 0:00:08]} 3. e3 {[%emt 0:00:43]} Bg7 {[%emt 0:00:26]} 4. b3 {[%emt 0:00:
00]} O-O {[%emt 0:00:22]} 5. Bb2 {[%emt 0:00:05]} d6 {[%emt 0:00:23]} 6. Be2 {
[%emt 0:00:26]} Nbd7 {[%emt 0:03:16]} 7. O-O {[%emt 0:00:35]} Re8 {[%emt 0:00:
00]} 8. Nbd2 {[%emt 0:01:50]} e5 {[%emt 0:09:30]} 9. dxe5 {[%emt 0:00:48]} dxe5
{[%emt 0:00:13]} 10. c4 {[%emt 0:02:53]} c6 {[%emt 0:09:23]} 11. Qc2 {[%emt 0:
00:00]} Qe7 {[%emt 0:07:32]} 12. Rac1 {[%emt 0:03:35]} b6 {[%emt 0:03:23]} 13.
Rfd1 {[%emt 0:02:15]} e4 {[%emt 0:12:12]} 14. Nd4 {[%emt 0:06:36]} Bb7 {
[%emt 0:00:30]} 15. Nb1 {[%emt 0:06:38]} a6 {[%emt 0:01:56]} 16. Qd2 {[%emt 0:
00:00]} Rad8 {[%emt 0:04:42]} 17. b4 {[%emt 0:04:32]} c5 {[%emt 0:04:06]} 18.
bxc5 {[%emt 0:02:44]} bxc5 {[%emt 0:01:13]} 19. Ba3 {[%emt 0:01:43]} Ne5 {
[%emt 0:09:40]} 20. Qa5 {[%emt 0:02:27]} Nd3 {[%emt 0:09:09]} 21. Bxd3 {
[%emt 0:05:41]} exd3 {[%emt 0:00:02]} 22. Bxc5 {[%emt 0:04:52]} Qe4 {[%emt 0:
00:00]} 23. Nf3 {[%emt 0:02:05]} Qg4 {[%emt 0:04:36]} 24. Nbd2 {[%emt 0:01:32]}
Ne4 {[%emt 0:02:31]} 25. h3 {[%emt 0:03:47]} Qf5 {[%emt 0:05:42]} 26. Bb4 {
[%emt 0:03:55]} Be5 {[%emt 0:07:29]} 27. Nxe4 {[%emt 0:05:41]} Qxe4 {[%emt 0:
00:00]} 28. Bc3 {[%emt 0:02:50]} Bb8 {[%emt 0:01:56]} 29. Qg5 {[%emt 0:03:06]}
f5 {[%emt 0:00:40]} 30. Qf6 {[%emt 0:01:56]} Be5 {[%emt 0:00:31]} 31. Bxe5 {
[%emt 0:01:08]} Rxe5 {[%emt 0:00:29]} 32. Qxd8+ {[%emt 0:00:52]} Kf7 {[%emt 0:
00:00]} 33. Ng5+ {[%emt 0:01:27]} 1-0